bitfinex-derivatives/quotes_SOLF0:USTF0_20250523
["timestamp","ask_amount","ask_price","bid_price","bid_amount"]
[1748022935186,5.4996,181.79,181.77,276.03960428]
[1748022935383,0.02852976,181.8,181.77,0.03960428]
[1748022935789,0.02852976,181.8,181.69,104.54]
[1748022935790,3.82452976,181.8,181.69,104.54]
[1748022936086,3.796,181.8,181.69,380.54]
[1748022936287,3.796,181.8,181.7,5.5019]
[1748022936786,0.03687242,181.77,181.73,0.04086703]
[1748022936985,112.93687242,181.77,181.73,0.04086703]
[1748022937590,5.501,181.74,181.73,0.04086703]
[1748022941182,0.03687242,181.77,181.73,0.04086703]
[1748022941686,0.03687242,181.77,181.74,5.5008]
[1748022942496,0.03687242,181.77,181.73,0.04086703]
[1748022943383,5.53707242,181.77,181.73,0.04086703]
[1748022943794,5.53707242,181.77,181.73,5.54196703]
[1748022944491,0.03687242,181.77,181.73,0.04086703]
[1748022944897,5.5005,181.76,181.73,0.04086703]
[1748022945198,0.03687242,181.77,181.73,0.04086703]
[1748022945497,5.5008,181.75,181.73,0.04086703]
[1748022945898,0.03687242,181.77,181.73,0.04086703]
[1748022946491,0.03687242,181.77,181.76,5.5003]
[1748022949299,0.03687242,181.77,181.76,386.0403]
[1748022949497,112.84,181.84,181.76,493.38]
[1748022949902,118.3379,181.84,181.76,493.38]
[1748022950202,112.84,181.84,181.81,5.4987]
[1748022950405,118.338,181.84,181.81,5.4987]
[1748022950602,118.36926161,181.84,181.81,5.53749369]
[1748022951204,118.36926161,181.84,181.81,0.03879369]
[1748022952102,5.4983,181.83,181.81,0.03879369]
[1748022952405,112.87126161,181.84,181.81,0.03879369]
[1748022952908,0.03126161,181.84,181.83,5.4982]
[1748022953101,112.84,181.91,181.82,104.52]
[1748022953300,5.4964,181.89,181.82,380.52]
[1748022953700,112.84,181.91,181.82,380.52]
[1748022953906,5.4967,181.88,181.82,380.52]
[1748022954100,5.4967,181.88,181.83,0.03725939]
[1748022954399,112.84,181.91,181.83,0.03725939]
[1748022954601,5.4967,181.89,181.84,5.4976]
[1748022954894,112.84,181.91,181.84,5.4976]
[1748022955300,5.4964,181.89,181.84,5.4976]
[1748022956003,112.84,181.91,181.83,5.53535939]
[1748022956308,5.4969,181.88,181.83,0.03725939]
[1748022956509,5.4969,181.88,181.83,5.53515939]
[1748022957007,5.4969,181.88,181.83,0.03725939]
[1748022957209,5.4964,181.89,181.84,5.4978]
[1748022957611,112.84,181.91,181.84,5.4978]
[1748022957909,5.4964,181.89,181.84,5.4978]
[1748022958905,5.4967,181.88,181.84,5.4978]
[1748022960411,5.4965,181.89,181.85,5.4976]
[1748022960613,112.84,181.91,181.83,276.03725939]
[1748022961015,5.4969,181.88,181.84,5.4977]
[1748022961416,112.84,181.91,181.83,276.03725939]
[1748022961710,5.4971,181.87,181.83,281.53545939]
[1748022961899,5.4971,181.87,181.83,5.53545939]
[1748022962104,112.84,181.91,181.83,0.03725939]
[1748022962413,5.4969,181.88,181.83,0.03725939]
[1748022962713,112.84,181.91,181.83,0.03725939]
[1748022962914,5.4969,181.88,181.83,5.53525939]
[1748022963113,112.84,181.91,181.83,5.53525939]
[1748022963512,5.497,181.87,181.83,5.53525939]
[1748022964103,112.84,181.91,181.83,0.03725939]
[1748022964310,8.54451213,181.88,181.83,0.03725939]
[1748022964517,118.4326,181.87,181.83,0.03725939]
[1748022964713,5.4979,181.84,181.83,0.03725939]
[1748022973928,5.4979,181.84,181.83,5.939e-05]
[1748022978730,8.54451213,181.84,181.73,112.8]
[1748022978932,8.54451213,181.81,181.7,276.0]
[1748022979134,5.6378,181.8,181.7,276.0]
[1748022979334,5.5014,181.73,181.68,387.55074792]
[1748022979526,112.76,181.75,181.68,387.55074792]
[1748022979730,0.03553816,181.73,181.7,0.03945639]
[1748022979923,5.5018,181.71,181.7,0.03945639]
[1748022980927,0.03553816,181.73,181.7,0.03945639]
[1748022981835,5.5015,181.72,181.7,0.03945639]
[1748022982027,0.03553816,181.73,181.7,0.03945639]
[1748022983236,5.5015,181.72,181.7,0.03945639]
[1748022983436,0.03553816,181.73,181.7,0.03945639]
[1748022984137,5.5018,181.71,181.7,0.03945639]
[1748022985839,118.2818,181.71,181.7,0.03945639]
[1748022988942,112.78,181.71,181.57,388.8]
[1748022989244,8.54451213,181.68,181.57,388.8]
[1748022989442,112.8,181.67,181.57,112.8]
[1748022989940,0.03732106,181.64,181.6,0.03727869]
[1748022990137,5.5049,181.61,181.6,0.03727869]
[1748022992842,8.54451213,181.61,181.48,276.0]
[1748022993045,1.8102,181.6,181.51,5.5078]
[1748022993343,5.5066,181.56,181.5,1.8853]
[1748022993843,0.03970299,181.55,181.51,0.03694606]
[1748022994037,0.03970299,181.55,181.52,5.5074]
[1748022994244,0.03970299,181.55,181.51,0.03694606]
[1748022994540,0.03970299,181.55,181.52,112.84]
[1748022994753,112.84,181.62,181.53,3.9365]
[1748022994936,112.84,181.62,181.53,279.9365]
[1748022995540,118.3448,181.62,181.53,279.9365]
[1748022995748,0.04172291,181.59,181.56,0.04123483]
[1748022996044,5.54722291,181.59,181.56,0.04123483]
[1748022996448,0.04172291,181.59,181.56,0.04123483]
[1748022997649,5.54742291,181.59,181.56,0.04123483]
[1748022998545,5.5061,181.57,181.56,0.04123483]
[1748022999739,5.5076,181.52,181.48,112.86]
[1748022999945,8.54451213,181.57,181.48,112.86]
[1748023000247,5.507,181.54,181.5,5.5081]
[1748023000641,5.507,181.54,181.48,112.86]
[1748023000842,5.54316823,181.53,181.49,0.03763192]
[1748023001238,0.03566823,181.53,181.49,0.03763192]
[1748023002041,5.5076,181.52,181.49,0.03763192]
[1748023002240,0.03566823,181.53,181.49,0.03763192]
[1748023002749,5.5081,181.51,181.49,0.03763192]
[1748023003346,5.5082,181.5,181.49,0.03763192]
[1748023004050,5.508,181.51,181.49,0.03763192]
[1748023004551,0.03566823,181.53,181.49,0.03763192]
[1748023004747,5.5079,181.52,181.49,0.03763192]
[1748023006551,5.5079,181.51,181.49,0.03763192]
[1748023006749,0.03566823,181.53,181.49,0.03763192]
[1748023008750,5.5082,181.51,181.49,0.03763192]
[1748023009154,0.03566823,181.53,181.49,0.03763192]
[1748023009349,5.5082,181.5,181.49,0.03763192]
[1748023009754,118.3682,181.5,181.49,3.192e-05]
[1748023010643,112.86,181.5,181.49,3.192e-05]
[1748023011044,118.3682,181.5,181.49,3.192e-05]
[1748023012153,121.44329226,181.5,181.33,112.88]
[1748023012358,8.58329226,181.47,181.34,5.8548]
[1748023012542,5.5104,181.43,181.38,5.5116]
[1748023012747,112.88,181.46,181.34,5.8548]
[1748023012950,5.5115,181.39,181.38,0.03562387]
[1748023014559,5.5115,181.39,181.38,2.387e-05]
[1748023016565,0.03727964,181.42,181.38,2.387e-05]
[1748023016760,112.9,181.39,181.38,2.387e-05]
[1748023017065,118.4115,181.39,181.38,2.387e-05]
[1748023017250,112.9,181.39,181.25,112.9]
[1748023017558,8.5895449,181.38,181.23,5.8546]
[1748023017747,8.5895449,181.38,181.24,112.92]
[1748023017948,112.9,181.39,181.2,118.00664792]
[1748023017949,8.5944491,181.35,181.2,118.00664792]
[1748023018154,8.59713274,181.33,181.21,5.8546]
[1748023018348,8.59713274,181.33,181.25,0.03976985]
[1748023018349,0.0392182,181.29,181.25,0.03976985]
[1748023019251,5.5540182,181.29,181.25,0.03976985]
[1748023019956,0.0392182,181.29,181.25,0.03976985]
[1748023020362,112.92,181.36,181.25,0.03976985]
[1748023020363,118.4325,181.36,181.25,0.03976985]
[1748023020563,112.92,181.36,181.24,112.92]
[1748023021060,112.92,181.36,181.31,5.5138]
[1748023021366,0.0366367,181.35,181.32,0.04223383]
[1748023021564,5.5494367,181.35,181.32,0.03520897]
[1748023022769,0.0366367,181.35,181.32,0.03520897]
[1748023023364,0.0366367,181.35,181.32,5.54880897]
[1748023023568,0.0366367,181.35,181.32,0.03520897]
[1748023025660,0.0366367,181.35,181.34,5.513]
[1748023025873,0.0366367,181.35,181.32,0.03520897]
[1748023026470,0.0366367,181.35,181.33,5.5131]
[1748023027170,0.0366367,181.35,181.32,5.54880897]
[1748023027672,5.5493367,181.35,181.32,0.03520897]
[1748023028974,5.513,181.34,181.32,0.03520897]
[1748023029175,0.0366367,181.35,181.32,0.03520897]
[1748023029580,5.5133,181.33,181.32,0.03520897]
[1748023030186,5.5145,181.3,181.24,5.6434]
[1748023030387,5.5145,181.3,181.25,5.5157]
[1748023030581,5.5145,181.3,181.24,5.6434]
[1748023030990,5.5145,181.3,181.25,5.5157]
[1748023031283,0.04111834,181.29,181.25,5.55458912]
[1748023031482,5.55571834,181.29,181.25,0.03888912]
[1748023031683,0.04111834,181.29,181.25,0.03888912]
[1748023032974,5.5151,181.28,181.25,0.03888912]
[1748023033180,0.04111834,181.29,181.25,0.03888912]
[1748023033888,5.5155,181.26,181.25,0.03888912]
[1748023035993,113.34,181.41,181.3,5.514]
[1748023036290,5.5126,181.36,181.3,5.514]
[1748023036483,113.34,181.41,181.31,5.5137]
[1748023036784,0.0350175,181.38,181.34,0.03906662]
[1748023036990,5.5471175,181.38,181.34,0.03906662]
[1748023038093,0.0350175,181.38,181.36,5.5123]
[1748023038992,0.0350175,181.38,181.34,0.03906662]
[1748023040694,5.5124,181.37,181.34,0.03906662]
[1748023041496,5.5125,181.36,181.34,0.03906662]
[1748023041894,0.0350175,181.38,181.34,0.03906662]
[1748023042103,5.5122,181.37,181.34,0.03906662]
[1748023042391,0.0350175,181.38,181.34,0.03906662]
[1748023042592,5.5469175,181.38,181.34,0.03906662]
[1748023043488,5.5121,181.37,181.34,0.03906662]
[1748023044498,5.5470175,181.38,181.34,0.03906662]
[1748023044696,0.0350175,181.38,181.34,0.03906662]
[1748023045195,0.0350175,181.38,181.35,5.5125]
[1748023046494,0.0350175,181.38,181.34,0.03906662]
[1748023046898,113.32,181.37,181.34,0.03906662]
[1748023047095,5.5127,181.35,181.34,0.03906662]
[1748023048299,118.8323,181.37,181.34,0.03906662]
[1748023048597,0.0350175,181.38,181.34,0.03906662]
[1748023049100,0.0350175,181.38,181.35,5.5126]
[1748023049300,0.0350175,181.38,181.34,0.03906662]
[1748023049701,0.0350175,181.38,181.35,5.5126]
[1748023050802,5.5470175,181.38,181.34,5.55206662]
[1748023051189,104.73086404,181.92,181.34,5.55206662]
[1748023051190,16.5,181.58,181.34,0.03906662]
[1748023051398,3.7376,181.49,181.33,113.32]
[1748023051597,129.1430635,181.48,181.32,218.1]
[1748023051900,129.1430635,181.48,181.29,1.8333]
[1748023052202,0.04013895,181.4,181.37,0.03537551]
[1748023052397,0.03749406,181.4,181.37,0.03535523]
[1748023052903,0.03749406,181.4,181.38,5.5115]
[1748023055605,0.03749406,181.4,181.37,0.03535523]
[1748023056595,5.54889406,181.4,181.37,0.03535523]
[1748023057304,0.03749406,181.4,181.37,0.03535523]
[1748023057910,5.5117,181.39,181.37,0.03535523]
[1748023058810,0.03749406,181.4,181.37,0.03535523]
[1748023059305,5.5116,181.39,181.37,0.03535523]
[1748023061603,5.5118,181.38,181.37,0.03535523]
[1748023062512,5.5116,181.39,181.37,0.03535523]
[1748023063207,5.5118,181.38,181.37,0.03535523]
[1748023063713,476.48,181.54,181.37,14.14079267]
[1748023063912,5.5085,181.49,181.42,8.58543744]
[1748023064214,476.48,181.54,181.43,114.74]
[1748023064504,5.5081,181.51,181.43,118.548]
[1748023064707,0.04011316,181.49,181.45,0.0372994]
[1748023065215,0.04011316,181.49,181.48,5.5088]
[1748023067415,0.04011316,181.49,181.45,0.0372994]
[1748023067815,0.04011316,181.49,181.48,5.5088]
[1748023068213,0.04011316,181.49,181.48,120.2288]
[1748023070010,0.04011316,181.49,181.48,5.5088]
[1748023070220,0.04011316,181.49,181.45,0.0372994]
[1748023070710,0.04011316,181.49,181.46,5.5092]
[1748023071214,5.54881316,181.49,181.45,5.5468994]
[1748023071415,5.54881316,181.49,181.45,0.0372994]
[1748023071610,0.04011316,181.49,181.45,0.0372994]
[1748023071810,0.04011316,181.49,181.46,5.5092]
[1748023072320,0.04011316,181.49,181.45,5.5468994]
[1748023072818,0.04011316,181.49,181.45,0.0372994]
[1748023074116,5.5088,181.48,181.45,0.0372994]
[1748023074620,0.04011316,181.49,181.45,0.0372994]
[1748023075319,5.509,181.48,181.45,0.0372994]
[1748023075720,0.04011316,181.49,181.45,0.0372994]
[1748023076923,5.5094,181.46,181.45,0.0372994]
[1748023077718,5.5092,181.47,181.45,0.0372994]
[1748023078124,5.5089,181.48,181.45,0.0372994]
[1748023078317,0.04011316,181.49,181.45,0.0372994]
[1748023079226,5.5091,181.48,181.45,0.0372994]
[1748023079522,0.04011316,181.49,181.45,0.0372994]
[1748023079725,5.5091,181.47,181.45,0.0372994]
[1748023079918,0.04011316,181.49,181.45,0.0372994]
[1748023080423,5.54881316,181.49,181.45,5.5467994]
[1748023080725,0.04011316,181.49,181.45,0.0372994]
[1748023081631,5.5088,181.48,181.45,0.0372994]
[1748023081929,0.04011316,181.49,181.45,0.0372994]
[1748023082725,0.04011316,181.49,181.47,5.509]
[1748023083025,0.04011316,181.49,181.45,0.0372994]
[1748023084133,5.5088,181.48,181.45,0.0372994]
[1748023084329,0.04011316,181.49,181.45,0.0372994]
[1748023085136,5.5088,181.48,181.45,0.0372994]
[1748023085637,0.04011316,181.49,181.45,0.0372994]
[1748023085840,5.5094,181.46,181.45,0.0372994]
[1748023086039,0.04011316,181.49,181.45,0.0372994]
[1748023086239,0.04011316,181.49,181.47,5.5089]
[1748023086839,5.54871316,181.49,181.46,5.5093]
[1748023087139,0.04011316,181.49,181.46,5.5093]
[1748023087341,0.04011316,181.49,181.45,0.0372994]
[1748023087738,0.04011316,181.49,181.47,5.509]
[1748023087943,0.04011316,181.49,181.45,0.0372994]
[1748023088242,0.04011316,181.49,181.47,5.5089]
[1748023088942,0.04011316,181.49,181.45,0.0372994]
[1748023089546,0.04011316,181.49,181.46,5.5092]
[1748023089745,0.04011316,181.49,181.45,0.0372994]
[1748023090546,0.04011316,181.49,181.48,5.5087]
[1748023094949,114.3,181.59,181.48,394.79886163]
[1748023095244,114.3,181.59,181.49,3.9011]
[1748023095452,114.3,181.59,181.5,5.508]
[1748023095844,0.03102982,181.56,181.53,0.03820477]
[1748023096650,5.5066,181.55,181.53,0.03820477]
[1748023098852,5.5069,181.54,181.53,0.03820477]
[1748023099052,0.03102982,181.56,181.53,0.03820477]
[1748023099356,5.5068,181.55,181.53,0.03820477]
[1748023099654,0.03102982,181.56,181.53,0.03820477]
[1748023100455,5.5068,181.55,181.53,0.03820477]
[1748023101156,0.03102982,181.56,181.53,0.03820477]
[1748023102048,0.03102982,181.56,181.55,5.5066]
[1748023102348,0.03102982,181.56,181.55,110.1866]
[1748023102647,0.03102982,181.56,181.55,386.1866]
[1748023103649,0.03102982,181.56,181.55,276.0]
[1748023104655,0.03102982,181.56,181.53,0.03820477]
[1748023105154,5.5068,181.55,181.53,0.03820477]
[1748023106556,5.53742982,181.56,181.53,0.03820477]
[1748023108156,5.5067,181.55,181.53,0.03820477]
[1748023109959,0.03102982,181.56,181.53,5.54530477]
[1748023110761,5.53742982,181.56,181.53,5.54530477]
[1748023111149,0.03102982,181.56,181.53,0.03820477]
[1748023111557,0.03102982,181.56,181.55,5.5066]
[1748023111860,0.03102982,181.56,181.55,114.26]
[1748023112359,0.03102982,181.56,181.53,276.03820477]
[1748023114165,0.03102982,181.56,181.53,281.54540477]
[1748023114557,0.03102982,181.56,181.53,276.03820477]
[1748023114864,5.5068,181.55,181.53,276.03820477]
[1748023115063,0.03102982,181.56,181.53,276.03820477]
[1748023115266,0.03102982,181.56,181.53,0.03820477]
[1748023115657,5.5069,181.54,181.53,0.03820477]
[1748023117367,5.5067,181.55,181.53,0.03820477]
[1748023117963,5.53732982,181.56,181.53,0.03820477]
[1748023118159,0.03102982,181.56,181.53,0.03820477]
[1748023118467,5.5067,181.55,181.53,0.03820477]
[1748023119671,5.5069,181.54,181.53,0.03820477]
[1748023120469,0.03102982,181.56,181.53,0.03820477]
[1748023120470,5.5067,181.55,181.53,0.03820477]
[1748023120772,0.03102982,181.56,181.53,0.03820477]
[1748023121170,5.5068,181.55,181.53,0.03820477]
[1748023121976,5.5069,181.54,181.53,0.03820477]
[1748023123873,0.03102982,181.56,181.53,0.03820477]
[1748023124171,0.03102982,181.56,181.55,5.5066]
[1748023126273,114.26,181.63,181.59,5.5053]
[1748023126474,477.8407,181.66,181.59,5.5053]
[1748023126677,5.5048,181.61,181.58,5.5055]
[1748023127177,5.5045,181.62,181.57,113.26]
[1748023127474,5.5045,181.62,181.59,5.5052]
[1748023128076,5.505,181.61,181.58,5.54270958]
[1748023130579,5.5046,181.62,181.59,5.5054]
[1748023130978,477.8407,181.66,181.58,0.03700958]
[1748023131678,5.505,181.61,181.58,5.54250958]
[1748023131867,113.24,181.63,181.58,0.03700958]
[1748023132272,5.5054,181.59,181.58,0.03700958]
[1748023135882,118.7454,181.59,181.58,9.58e-06]
[1748023136382,120.5826,181.59,181.58,9.58e-06]
[1748023150302,118.7454,181.59,181.58,9.58e-06]
[1748023150799,0.03495898,181.6,181.58,9.58e-06]
[1748023150800,0.03495898,181.6,181.58,5.50540958]
[1748023151008,0.03495898,181.6,181.58,9.58e-06]
[1748023153003,5.54035898,181.6,181.58,9.58e-06]
[1748023153209,0.03495898,181.6,181.58,9.58e-06]
[1748023153604,5.5054,181.59,181.58,9.58e-06]
[1748023187244,118.5654,181.59,181.58,9.58e-06]
[1748023196559,5.5079,181.51,181.49,495.461]
[1748023196750,113.06,181.59,181.49,495.461]
[1748023197048,5.5075,181.53,181.49,495.461]
[1748023197448,5.54450958,181.53,181.49,495.50307959]
[1748023197744,0.03700958,181.53,181.49,495.50307959]
[1748023197947,0.03700958,181.53,181.49,390.84307959]
[1748023198147,5.5076,181.52,181.49,390.84307959]
[1748023198447,0.03700958,181.53,181.49,390.84307959]
[1748023199441,0.03700958,181.53,181.49,277.86307959]
[1748023199950,0.03700958,181.53,181.49,1.86307959]
[1748023200145,5.5081,181.5,181.49,1.86307959]
[1748023200845,5.5079,181.51,181.49,1.86307959]
[1748023201246,0.03700958,181.53,181.49,1.86307959]
[1748023202055,5.5081,181.51,181.49,1.86307959]
[1748023204248,5.5076,181.52,181.49,1.86307959]
[1748023204446,0.03700958,181.53,181.49,277.86307959]
[1748023204840,0.03700958,181.53,181.49,283.37137959]
[1748023204841,5.5075,181.52,181.49,283.37137959]
[1748023205046,0.03700958,181.53,181.49,277.86307959]
[1748023205443,0.03700958,181.53,181.49,1.86307959]
[1748023205855,5.5081,181.5,181.49,1.86307959]
[1748023206046,0.03700958,181.53,181.49,1.86307959]
[1748023206854,5.508,181.51,181.49,1.86307959]
[1748023207055,0.03700958,181.53,181.49,1.86307959]
[1748023207357,5.5081,181.5,181.49,1.86307959]
[1748023207849,5.5081,181.5,181.49,0.04207959]
[1748023208452,5.5097,181.45,181.43,1.8322]
[1748023209250,5.5095,181.46,181.43,1.8322]
[1748023209447,5.5095,181.46,181.45,0.0404945]
[1748023210260,5.5095,181.46,181.45,9.45e-05]
[1748023210463,5.5103,181.43,181.42,5.08664792]
[1748023210652,8.57886163,181.46,181.42,5.08664792]
[1748023210653,113.02,181.47,181.42,5.08664792]
[1748023211056,5.51,181.44,181.42,5.08664792]
[1748023211251,113.02,181.46,181.42,5.08664792]
[1748023211455,5.5098,181.45,181.42,0.03514846]
[1748023211650,113.05987956,181.46,181.42,0.03514846]
[1748023211960,5.5101,181.44,181.42,0.03514846]
[1748023212459,5.5103,181.43,181.42,0.03514846]
[1748023214261,5.512,181.38,181.36,276.0]
[1748023214459,113.04,181.41,181.35,5.6237]
[1748023214853,5.5114,181.4,181.35,5.6237]
[1748023215354,0.03686037,181.39,181.36,5.55283291]
[1748023215658,0.03686037,181.39,181.36,0.04063291]
[1748023215853,5.54856037,181.39,181.36,0.04063291]
[1748023216159,0.03686037,181.39,181.36,0.04063291]
[1748023216359,5.5118,181.38,181.36,0.04063291]
[1748023216859,0.03686037,181.39,181.36,0.04063291]
[1748023217359,0.03686037,181.39,181.36,5.55293291]
[1748023218458,0.03686037,181.39,181.37,5.512]
[1748023218661,0.03686037,181.39,181.36,0.04063291]
[1748023219360,5.5121,181.37,181.36,0.04063291]
[1748023221059,5.5119,181.38,181.36,0.04063291]
[1748023221358,112.96,181.49,181.36,281.56063291]
[1748023221560,112.96,181.49,181.38,8.57886163]
[1748023221751,112.96,181.49,181.39,106.5955]
[1748023221956,112.96,181.49,181.4,112.96]
[1748023222158,5.5089,181.48,181.44,5.5098]
[1748023222357,5.54978963,181.48,181.44,276.03578714]
[1748023222964,5.5091,181.47,181.44,276.03578714]
[1748023223165,0.04088963,181.48,181.44,276.03578714]
[1748023223666,5.5093,181.47,181.44,276.03578714]
[1748023224069,0.04088963,181.48,181.44,276.03578714]
[1748023224260,5.5094,181.46,181.44,276.03578714]
[1748023224569,0.04088963,181.48,181.44,276.03578714]
[1748023225866,5.5093,181.47,181.44,276.03578714]
[1748023226269,0.04088963,181.48,181.44,276.03578714]
[1748023226662,5.5091,181.47,181.44,276.03578714]
[1748023227472,0.04088963,181.48,181.45,104.74]
[1748023227659,0.04088963,181.48,181.45,114.1356]
[1748023229072,589.02,181.53,181.47,5.5091]
[1748023229370,589.02,181.53,181.46,2.0051]
[1748023229866,589.02,181.53,181.41,276.0]
[1748023230075,8.57886163,181.48,181.41,276.0]
[1748023230267,112.96,181.47,181.45,9.044e-05]
[1748023230474,112.96,181.47,181.37,277.8092]
[1748023230666,8.57886163,181.45,181.37,1.8092]
[1748023230865,5.5116,181.39,181.37,1.8092]
[1748023231172,8.57886163,181.45,181.37,1.8092]
[1748023231173,112.94,181.43,181.37,1.8092]
[1748023231469,5.5114,181.4,181.38,0.03795329]
[1748023231872,0.03864258,181.42,181.38,0.03795329]
[1748023232165,0.03864258,181.42,181.38,112.97795329]
[1748023232366,112.94,181.47,181.39,1.9101]
[1748023232566,118.4491,181.47,181.39,1.9101]
[1748023232768,112.94,181.47,181.39,1.9101]
[1748023233072,5.5096,181.46,181.39,1.9101]
[1748023233372,0.03903605,181.44,181.39,1.9101]
[1748023233771,0.03903605,181.44,181.43,5.5103]
[1748023235366,0.03903605,181.44,181.42,0.03847258]
[1748023235562,0.03903605,181.44,181.42,5.54897258]
[1748023235875,0.03903605,181.44,181.42,0.03847258]
[1748023237668,0.03903605,181.44,181.42,5.54897258]
[1748023238178,0.03903605,181.44,181.43,5.5103]
[1748023238681,112.94,181.51,181.43,276.0]
[1748023238878,112.94,181.51,181.46,5.5092]
[1748023239579,0.03704487,181.5,181.47,0.04175029]
[1748023239972,0.03704487,181.5,181.47,276.04175029]
[1748023240286,0.03704487,181.5,181.49,5.5084]
[1748023241784,112.94,181.55,181.52,5.5074]
[1748023242593,118.4467,181.55,181.52,5.5074]
[1748023242882,118.4467,181.55,181.52,5.5450145]
[1748023243072,118.4467,181.55,181.52,0.0376145]
[1748023243486,112.94,181.55,181.52,0.0376145]
[1748023244287,114.8111,181.59,181.52,104.7376145]
[1748023244583,5.5062,181.57,181.54,5.5067]
[1748023244787,112.92,181.63,181.54,276.0]
[1748023244989,112.92,181.63,181.57,0.03587286]
[1748023245187,112.92,181.63,181.58,104.7]
[1748023246185,5.5054,181.59,181.58,104.7]
[1748023246582,112.92,181.63,181.58,104.7]
[1748023246789,5.5054,181.59,181.58,104.7]
[1748023246982,112.92,181.63,181.57,276.03587286]
[1748023247183,112.92,181.63,181.57,0.03587286]
[1748023249091,5.5057,181.58,181.57,0.03587286]
[1748023251489,112.92,181.63,181.57,0.03587286]
[1748023251885,8.57886163,181.61,181.57,0.03587286]
[1748023252286,5.5057,181.58,181.57,0.03587286]
[1748023252494,118.3057,181.58,181.57,0.03587286]
[1748023264014,112.8,181.58,181.57,0.03587286]
[1748023264216,112.8,181.62,181.57,276.03587286]
[1748023265306,5.5057,181.58,181.57,276.03587286]
[1748023265510,5.5057,181.58,181.57,0.03587286]
[1748023270709,5.5057,181.58,181.49,276.0]
[1748023270710,5.5081,181.5,181.49,276.0]
[1748023270908,5.5081,181.5,181.48,276.0]
[1748023271209,112.8,181.54,181.48,276.0]
[1748023271414,5.5082,181.5,181.45,380.66]
[1748023271808,0.03618065,181.49,181.46,0.0407006]
[1748023272410,5.5065,181.56,181.52,5.5074]
[1748023272612,5.5065,181.56,181.52,281.5074]
[1748023273014,5.5061,181.57,181.53,5.507]
[1748023273218,112.8,181.62,181.53,276.0]
[1748023273413,112.8,181.62,181.56,0.03601443]
[1748023273621,5.5052,181.6,181.56,281.54211443]
[1748023273816,112.8,181.62,181.56,276.03601443]
[1748023274123,5.5048,181.61,181.57,104.68]
[1748023274322,5.5048,181.61,181.57,380.68]
[1748023274813,112.8,181.66,181.57,380.68]
[1748023275014,112.8,181.66,181.6,0.04232567]
[1748023275413,5.5048,181.61,181.6,0.04232567]
[1748023276817,5.5046,181.62,181.6,0.04232567]
[1748023278626,5.5048,181.61,181.6,0.04232567]
[1748023279515,5.5046,181.62,181.6,0.04232567]
[1748023280524,5.5048,181.61,181.6,0.04232567]
[1748023282025,5.5046,181.62,181.6,0.04232567]
[1748023282319,112.8,181.66,181.6,0.04232567]
[1748023282519,5.5038,181.65,181.62,5.5045]
[1748023282720,5.5038,181.65,181.6,0.04232567]
[1748023283521,5.5034,181.66,181.6,276.04232567]
[1748023283821,5.5034,181.66,181.6,277.97312567]
[1748023284122,5.5034,181.66,181.61,5.5046]
[1748023284312,5.5037,181.65,181.6,277.97312567]
[1748023284515,112.7,181.7,181.6,277.97312567]
[1748023284918,112.7,181.7,181.6,283.47802567]
[1748023285421,5.5039,181.64,181.6,283.47802567]
[1748023285924,112.7,181.7,181.6,277.97312567]
[1748023286424,121.27886163,181.7,181.6,0.04232567]
[1748023286809,5.5048,181.61,181.6,0.04232567]
[1748023289627,112.7,181.64,181.6,0.04232567]
[1748023290520,5.5048,181.61,181.6,0.04232567]
[1748023294425,112.7,181.64,181.6,0.04232567]
[1748023297133,5.5048,181.61,181.6,0.04232567]
[1748023297433,112.7,181.64,181.6,0.04232567]
[1748023297634,5.5047,181.62,181.6,0.04232567]
[1748023298136,112.7,181.64,181.6,0.04232567]
[1748023298837,5.5042,181.63,181.6,5.54732567]
[1748023299332,5.5046,181.62,181.6,0.04232567]
[1748023299541,112.7,181.64,181.6,0.04232567]
[1748023299731,112.7,181.64,181.6,276.04232567]
[1748023299930,5.5036,181.66,181.63,5.5041]
[1748023300131,112.68,181.69,181.63,0.03601414]
[1748023300830,112.68,181.69,181.63,276.03601414]
[1748023301140,5.5039,181.64,181.63,276.03601414]
[1748023303050,112.68,181.69,181.63,276.03601414]